[Event "*** SCC Grand Prix: Titled Tuesday Blitz"]
[Site "Chess.com"]
[Date "2020.06.02"]
[Round "1"]
[White "chessdude"]
[Black "Khayala13"]
[Result "1-0"]
[WhiteElo "2622"]
[BlackElo "2283"]
[TimeControl "180+1"]
[EndTime "10:08:50 PDT"]
[Termination "chessdude won on time"]

1. e4 {[%clk 0:03:00.9]} 1... c5 {[%clk 0:02:57.6]} 2. Nf3 {[%clk 0:03:00.9]}
2... e6 {[%clk 0:02:57.1]} 3. d4 {[%clk 0:02:59.9]} 3... cxd4 {[%clk 0:02:55.3]}
4. Nxd4 {[%clk 0:03:00.8]} 4... a6 {[%clk 0:02:56.2]} 5. c4 {[%clk 0:03:00.8]}
5... Nf6 {[%clk 0:02:56.3]} 6. Nc3 {[%clk 0:03:01.2]} 6... Qc7 {[%clk
0:02:56.9]} 7. Be2 {[%clk 0:03:00.2]} 7... b6 {[%clk 0:02:57.3]} 8. a3 {[%clk
0:02:50.5]} 8... Bb7 {[%clk 0:02:56.6]} 9. f3 {[%clk 0:02:50.9]} 9... Be7 {[%clk
0:02:56.1]} 10. Be3 {[%clk 0:02:50.7]} 10... d6 {[%clk 0:02:56.6]} 11. O-O
{[%clk 0:02:49.8]} 11... Nbd7 {[%clk 0:02:57.2]} 12. Rc1 {[%clk 0:02:49.7]}
12... O-O {[%clk 0:02:56.7]} 13. Qd2 {[%clk 0:02:50.2]} 13... Rac8 {[%clk
0:02:56.9]} 14. Rfd1 {[%clk 0:02:50.5]} 14... Qb8 {[%clk 0:02:57]} 15. b4 {[%clk
0:02:47.4]} 15... Bd8 {[%clk 0:02:57.1]} 16. Nb3 {[%clk 0:02:47.1]} 16... Bc7
{[%clk 0:02:57.2]} 17. Bf4 {[%clk 0:02:47.5]} 17... Ne5 {[%clk 0:02:46.9]} 18.
Bxe5 {[%clk 0:02:47.7]} 18... dxe5 {[%clk 0:02:47.8]} 19. c5 {[%clk 0:02:48.4]}
19... bxc5 {[%clk 0:02:43.9]} 20. Nxc5 {[%clk 0:02:47]} 20... Bb6 {[%clk
0:02:44]} 21. Na4 {[%clk 0:02:47.1]} 21... Ba7 {[%clk 0:02:39.1]} 22. Kh1 {[%clk
0:02:47.6]} 22... Rfd8 {[%clk 0:02:37.2]} 23. Qe1 {[%clk 0:02:38.8]} 23... Rxd1
{[%clk 0:02:34.7]} 24. Rxd1 {[%clk 0:02:33.4]} 24... a5 {[%clk 0:02:27.8]} 25.
Nxb7 {[%clk 0:02:14.6]} 25... Qxb7 {[%clk 0:02:28.6]} 26. bxa5 {[%clk
0:02:14.7]} 26... Qb3 {[%clk 0:02:13.5]} 27. Qc3 {[%clk 0:01:31.9]} 27... Qb7
{[%clk 0:00:58.4]} 28. Nb6 {[%clk 0:01:12.3]} 28... Bxb6 {[%clk 0:00:39.1]} 29.
axb6 {[%clk 0:01:09.3]} 29... h6 {[%clk 0:00:38.1]} 30. Qxe5 {[%clk 0:00:52.4]}
30... Qxb6 {[%clk 0:00:37.8]} 31. a4 {[%clk 0:00:49.1]} 31... Ra8 {[%clk
0:00:28.1]} 32. Bb5 {[%clk 0:00:47.5]} 32... Qf2 {[%clk 0:00:21.5]} 33. Qd4
{[%clk 0:00:45.6]} 33... Qa2 {[%clk 0:00:18.3]} 34. Qd2 {[%clk 0:00:45.1]} 34...
Qa3 {[%clk 0:00:15.3]} 35. Qc2 {[%clk 0:00:43.9]} 35... Nh5 {[%clk 0:00:10.7]}
36. Qd3 {[%clk 0:00:36.3]} 36... Qb4 {[%clk 0:00:06.4]} 37. Qd2 {[%clk
0:00:36.5]} 37... Qa3 {[%clk 0:00:05.5]} 38. e5 {[%clk 0:00:34.5]} 38... Kh7
{[%clk 0:00:02.4]} 39. Qd3+ {[%clk 0:00:33.9]} 39... Qxd3 {[%clk 0:00:02.8]} 40.
Rxd3 {[%clk 0:00:34.8]} 40... Nf4 {[%clk 0:00:03.7]} 41. Rd4 {[%clk 0:00:32.7]}
41... Nd5 {[%clk 0:00:02.8]} 42. g3 {[%clk 0:00:30.2]} 42... Kg6 {[%clk
0:00:02.7]} 43. f4 {[%clk 0:00:29]} 43... f5 {[%clk 0:00:01.8]} 44. exf6 {[%clk
0:00:28.6]} 44... Kxf6 {[%clk 0:00:02.1]} 45. Rd1 {[%clk 0:00:28.2]} 45... Nc3
{[%clk 0:00:02]} 46. Rd4 {[%clk 0:00:26.9]} 46... Nxb5 {[%clk 0:00:01.8]} 47.
axb5 {[%clk 0:00:26.9]} 47... Ra2 {[%clk 0:00:01.6]} 48. Rb4 {[%clk 0:00:26.2]}
48... Ra7 {[%clk 0:00:02]} 49. b6 {[%clk 0:00:26.2]} 49... Rb7 {[%clk
0:00:02.6]} 50. Kg2 {[%clk 0:00:26.9]} 50... Kf5 {[%clk 0:00:02.4]} 51. Kf3
{[%clk 0:00:27]} 51... g5 {[%clk 0:00:02.2]} 52. h3 {[%clk 0:00:23.1]} 52...
gxf4 {[%clk 0:00:01.7]} 53. gxf4 {[%clk 0:00:23.4]} 53... Kf6 {[%clk 0:00:02.1]}
54. Ke4 {[%clk 0:00:23.8]} 54... h5 {[%clk 0:00:02.3]} 55. h4 {[%clk 0:00:23.8]}
55... Kg6 {[%clk 0:00:02.4]} 56. Ke5 {[%clk 0:00:24]} 56... Kf7 {[%clk
0:00:02.7]} 57. f5 {[%clk 0:00:21.4]} 57... exf5 {[%clk 0:00:02.8]} 58. Kxf5
{[%clk 0:00:22.3]} 58... Ke7 {[%clk 0:00:02.1]} 59. Kg5 {[%clk 0:00:22.8]} 59...
Kd6 {[%clk 0:00:02.2]} 60. Kxh5 {[%clk 0:00:21.9]} 60... Kc5 {[%clk 0:00:03.1]}
61. Rb1 {[%clk 0:00:22.3]} 61... Kc6 {[%clk 0:00:03.2]} 62. Kg6 {[%clk
0:00:22.4]} 62... Rb8 {[%clk 0:00:02.5]} 63. b7 {[%clk 0:00:21.8]} 63... Kc7
{[%clk 0:00:01.9]} 64. h5 {[%clk 0:00:21]} 1-0

[Event "*** SCC Grand Prix: Titled Tuesday Blitz"]
[Site "Chess.com"]
[Date "2020.06.02"]
[Round "1"]
[White "mishanick"]
[Black "maximnovik"]
[Result "1-0"]
[WhiteElo "2955"]
[BlackElo "2445"]
[TimeControl "180+1"]
[EndTime "10:09:04 PDT"]
[Termination "mishanick won on time"]

1. d4 {[%clk 0:03:00.9]} 1... Nf6 {[%clk 0:02:58.4]} 2. c4 {[%clk 0:03:01.3]}
2... g6 {[%clk 0:02:59]} 3. Nc3 {[%clk 0:03:01]} 3... d5 {[%clk 0:02:59.6]} 4.
cxd5 {[%clk 0:03:01.3]} 4... Nxd5 {[%clk 0:02:59.8]} 5. e4 {[%clk 0:03:01.8]}
5... Nxc3 {[%clk 0:03:00.3]} 6. bxc3 {[%clk 0:03:02]} 6... Bg7 {[%clk
0:03:00.9]} 7. Nf3 {[%clk 0:03:01.9]} 7... c5 {[%clk 0:03:01.4]} 8. Bb5+ {[%clk
0:03:02]} 8... Nc6 {[%clk 0:03:00.4]} 9. d5 {[%clk 0:03:01.7]} 9... a6 {[%clk
0:02:53.4]} 10. Be2 {[%clk 0:02:56]} 10... Ne5 {[%clk 0:02:46.6]} 11. Nxe5
{[%clk 0:02:51.3]} 11... Bxe5 {[%clk 0:02:46.9]} 12. Qd2 {[%clk 0:02:51.5]}
12... e6 {[%clk 0:02:46]} 13. f4 {[%clk 0:02:49.8]} 13... Bg7 {[%clk 0:02:45.4]}
14. d6 {[%clk 0:02:48.9]} 14... O-O {[%clk 0:02:43]} 15. O-O {[%clk 0:02:40.4]}
15... e5 {[%clk 0:02:42.9]} 16. f5 {[%clk 0:02:37.7]} 16... Bd7 {[%clk
0:02:16.5]} 17. Bc4 {[%clk 0:02:08.9]} 17... gxf5 {[%clk 0:02:11.7]} 18. exf5
{[%clk 0:02:06.8]} 18... Bf6 {[%clk 0:02:11.6]} 19. Qd3 {[%clk 0:01:53.4]} 19...
Kh8 {[%clk 0:02:08.2]} 20. Bh6 {[%clk 0:01:52.4]} 20... Bc6 {[%clk 0:02:08.4]}
21. Bxf8 {[%clk 0:01:47.3]} 21... Qxf8 {[%clk 0:02:06.2]} 22. Rad1 {[%clk
0:01:45.8]} 22... Rd8 {[%clk 0:02:04.8]} 23. Bd5 {[%clk 0:01:34]} 23... Rxd6
{[%clk 0:02:03.2]} 24. c4 {[%clk 0:01:34]} 24... Bxd5 {[%clk 0:02:02.5]} 25.
cxd5 {[%clk 0:01:34]} 25... b5 {[%clk 0:02:02.9]} 26. Qe4 {[%clk 0:01:24.3]}
26... c4 {[%clk 0:02:02.1]} 27. g4 {[%clk 0:01:24.3]} 27... h6 {[%clk
0:01:57.8]} 28. Rf3 {[%clk 0:01:17.5]} 28... Kg7 {[%clk 0:01:55]} 29. h4 {[%clk
0:01:17.3]} 29... Bxh4 {[%clk 0:01:53.2]} 30. Qxe5+ {[%clk 0:00:55.7]} 30... Bf6
{[%clk 0:01:52.9]} 31. Qe3 {[%clk 0:00:56.3]} 31... Qe7 {[%clk 0:01:43.3]} 32.
Kf2 {[%clk 0:00:34.8]} 32... Qd7 {[%clk 0:01:33]} 33. Rh3 {[%clk 0:00:32.8]}
33... Bg5 {[%clk 0:01:32.5]} 34. Qd4+ {[%clk 0:00:29.7]} 34... Bf6 {[%clk
0:01:28.9]} 35. Qf4 {[%clk 0:00:29.6]} 35... Bg5 {[%clk 0:01:27.2]} 36. Qe5+
{[%clk 0:00:29.2]} 36... Bf6 {[%clk 0:01:27.1]} 37. Qe3 {[%clk 0:00:28.8]} 37...
Bg5 {[%clk 0:01:25.7]} 38. Qc5 {[%clk 0:00:29.2]} 38... Qd8 {[%clk 0:01:18.4]}
39. Rhh1 {[%clk 0:00:25.4]} 39... Qf6 {[%clk 0:01:14.3]} 40. Qd4 {[%clk
0:00:17.2]} 40... Qxd4+ {[%clk 0:01:12.4]} 41. Rxd4 {[%clk 0:00:17.3]} 41... Kf6
{[%clk 0:01:08.3]} 42. Kf3 {[%clk 0:00:11.4]} 42... Ke5 {[%clk 0:01:06.4]} 43.
Rdd1 {[%clk 0:00:09.8]} 43... c3 {[%clk 0:01:05.3]} 44. Rhe1+ {[%clk 0:00:10]}
44... Kf6 {[%clk 0:01:04.7]} 45. Re2 {[%clk 0:00:10.6]} 45... Bd2 {[%clk
0:01:03]} 46. Rexd2 {[%clk 0:00:09]} 46... cxd2 {[%clk 0:01:02.3]} 47. Ke4
{[%clk 0:00:09.5]} 47... Ke7 {[%clk 0:00:43.3]} 48. Rxd2 {[%clk 0:00:09.2]}
48... Rb6 {[%clk 0:00:43.4]} 49. Rc2 {[%clk 0:00:07.6]} 49... Kd7 {[%clk
0:00:42.4]} 50. Kd4 {[%clk 0:00:07.1]} 50... b4 {[%clk 0:00:41.5]} 51. Kc5
{[%clk 0:00:07.1]} 51... Rb5+ {[%clk 0:00:41.2]} 52. Kd4 {[%clk 0:00:07.6]}
52... Rb7 {[%clk 0:00:41.2]} 53. Rc6 {[%clk 0:00:07.3]} 53... a5 {[%clk
0:00:37.3]} 54. Ra6 {[%clk 0:00:07.4]} 54... b3 {[%clk 0:00:33.8]} 55. axb3
{[%clk 0:00:08.3]} 55... Rxb3 {[%clk 0:00:31.9]} 56. Ke5 {[%clk 0:00:08.2]}
56... Rb5 {[%clk 0:00:28.1]} 57. Ra7+ {[%clk 0:00:07.7]} 57... Ke8 {[%clk
0:00:25]} 58. f6 {[%clk 0:00:08.1]} 58... Rb6 {[%clk 0:00:21.5]} 59. Rxa5 {[%clk
0:00:07.4]} 59... Kd7 {[%clk 0:00:15.3]} 60. Ra7+ {[%clk 0:00:07.3]} 60... Ke8
{[%clk 0:00:15.5]} 61. Ra8+ {[%clk 0:00:07.8]} 61... Kd7 {[%clk 0:00:15.4]} 62.
Rf8 {[%clk 0:00:08.4]} 62... Rb1 {[%clk 0:00:13.7]} 63. Rxf7+ {[%clk 0:00:08.6]}
63... Ke8 {[%clk 0:00:13.8]} 64. Rh7 {[%clk 0:00:09.5]} 64... Re1+ {[%clk
0:00:12.6]} 65. Kf5 {[%clk 0:00:09.8]} 65... Rf1+ {[%clk 0:00:12.3]} 66. Ke6
{[%clk 0:00:10.3]} 66... Re1+ {[%clk 0:00:11]} 67. Kd6 {[%clk 0:00:10.7]} 67...
Rf1 {[%clk 0:00:10.4]} 68. Rxh6 {[%clk 0:00:10.3]} 68... Kf7 {[%clk 0:00:10.7]}
69. g5 {[%clk 0:00:10.6]} 69... Rf5 {[%clk 0:00:09.8]} 70. Rh7+ {[%clk
0:00:10.7]} 70... Kf8 {[%clk 0:00:09.6]} 71. Rg7 {[%clk 0:00:10.4]} 1-0

[Event "*** SCC Grand Prix: Titled Tuesday Blitz"]
[Site "Chess.com"]
[Date "2020.06.02"]
[Round "1"]
[White "Unknown_IM"]
[Black "mirochka"]
[Result "1/2-1/2"]
[WhiteElo "2524"]
[BlackElo "2184"]
[TimeControl "180+1"]
[EndTime "10:09:13 PDT"]
[Termination "Game drawn by repetition"]

1. c4 {[%clk 0:03:00.7]} 1... Nf6 {[%clk 0:02:53.6]} 2. Nf3 {[%clk 0:02:59.2]}
2... e6 {[%clk 0:02:48]} 3. e3 {[%clk 0:02:58.4]} 3... d5 {[%clk 0:02:47.4]} 4.
b3 {[%clk 0:02:57.5]} 4... Be7 {[%clk 0:02:45.9]} 5. Bb2 {[%clk 0:02:57.5]} 5...
O-O {[%clk 0:02:45.4]} 6. Be2 {[%clk 0:02:58.4]} 6... c5 {[%clk 0:02:42.4]} 7.
O-O {[%clk 0:02:57.5]} 7... Nc6 {[%clk 0:02:40.7]} 8. cxd5 {[%clk 0:02:56.5]}
8... Nxd5 {[%clk 0:02:35.9]} 9. a3 {[%clk 0:02:55.9]} 9... Bf6 {[%clk
0:02:35.1]} 10. Qc2 {[%clk 0:02:53.4]} 10... b6 {[%clk 0:02:31]} 11. Nc3 {[%clk
0:02:50.1]} 11... Nxc3 {[%clk 0:02:20.3]} 12. Bxc3 {[%clk 0:02:46.9]} 12... Bb7
{[%clk 0:02:19.1]} 13. Rac1 {[%clk 0:02:42.5]} 13... Qe7 {[%clk 0:01:59.4]} 14.
Rfd1 {[%clk 0:02:30.4]} 14... Rfd8 {[%clk 0:01:57]} 15. d3 {[%clk 0:02:14.5]}
15... Rac8 {[%clk 0:01:51.7]} 16. Qb2 {[%clk 0:02:08]} 16... Ba6 {[%clk
0:01:38.1]} 17. Bf1 {[%clk 0:01:25.7]} 17... Rd5 {[%clk 0:01:18.8]} 18. d4
{[%clk 0:01:08.5]} 18... Bxf1 {[%clk 0:01:10.6]} 19. Rxf1 {[%clk 0:01:06.8]}
19... cxd4 {[%clk 0:00:28.4]} 20. Bxd4 {[%clk 0:00:37.6]} 20... Bxd4 {[%clk
0:00:24.6]} 21. Nxd4 {[%clk 0:00:36.1]} 21... Rc5 {[%clk 0:00:23.6]} 22. Nxc6
{[%clk 0:00:29.7]} 22... R8xc6 {[%clk 0:00:22]} 23. b4 {[%clk 0:00:30.1]} 23...
Rxc1 {[%clk 0:00:21.2]} 24. Rxc1 {[%clk 0:00:31]} 24... Qc7 {[%clk 0:00:20.5]}
25. Rxc6 {[%clk 0:00:27.4]} 25... Qxc6 {[%clk 0:00:20.9]} 26. h3 {[%clk
0:00:27.9]} 26... g6 {[%clk 0:00:20.2]} 27. Kh2 {[%clk 0:00:27.4]} 27... h5
{[%clk 0:00:19.8]} 28. Qe5 {[%clk 0:00:27.1]} 28... a6 {[%clk 0:00:17.2]} 29. h4
{[%clk 0:00:26.5]} 29... Kh7 {[%clk 0:00:17.3]} 30. Qf6 {[%clk 0:00:25.1]} 30...
Qc7+ {[%clk 0:00:17.3]} 31. g3 {[%clk 0:00:24.7]} 31... b5 {[%clk 0:00:17.4]}
32. Qf4 {[%clk 0:00:23.3]} 32... Qxf4 {[%clk 0:00:15.7]} 33. exf4 {[%clk
0:00:24.2]} 33... Kg7 {[%clk 0:00:15.2]} 34. Kg2 {[%clk 0:00:24.9]} 34... Kf6
{[%clk 0:00:15.3]} 35. Kf3 {[%clk 0:00:25.5]} 35... Kf5 {[%clk 0:00:15.2]} 36.
Ke3 {[%clk 0:00:23.2]} 36... e5 {[%clk 0:00:15.3]} 37. fxe5 {[%clk 0:00:21.2]}
37... Kxe5 {[%clk 0:00:15.8]} 38. f4+ {[%clk 0:00:20.9]} 38... Kd5 {[%clk
0:00:15.3]} 39. f5 {[%clk 0:00:20.4]} 39... Ke5 {[%clk 0:00:13.7]} 40. fxg6
{[%clk 0:00:18.7]} 40... fxg6 {[%clk 0:00:14]} 41. Kf3 {[%clk 0:00:19.1]} 41...
Kf5 {[%clk 0:00:14.1]} 42. g4+ {[%clk 0:00:18.9]} 42... hxg4+ {[%clk 0:00:13.5]}
43. Kg3 {[%clk 0:00:19.8]} 43... Ke5 {[%clk 0:00:05.8]} 44. Kxg4 {[%clk
0:00:20.7]} 44... Kf6 {[%clk 0:00:05.9]} 45. Kf4 {[%clk 0:00:21.1]} 45... Ke6
{[%clk 0:00:06]} 46. Kg5 {[%clk 0:00:19.4]} 46... Kf7 {[%clk 0:00:06.1]} 47. Kg4
{[%clk 0:00:17.3]} 47... Kf6 {[%clk 0:00:05.9]} 48. Kf4 {[%clk 0:00:17.7]} 48...
Ke6 {[%clk 0:00:06]} 49. Ke4 {[%clk 0:00:17.8]} 49... Kf6 {[%clk 0:00:06]} 50.
Kd5 {[%clk 0:00:17.2]} 50... Kf5 {[%clk 0:00:06]} 51. Kc6 {[%clk 0:00:17]} 51...
Kg4 {[%clk 0:00:06.6]} 52. Kb6 {[%clk 0:00:16.5]} 52... Kxh4 {[%clk 0:00:07.1]}
53. Kxa6 {[%clk 0:00:17.4]} 53... g5 {[%clk 0:00:07.7]} 54. Kxb5 {[%clk
0:00:18.3]} 54... g4 {[%clk 0:00:08.2]} 55. a4 {[%clk 0:00:19.2]} 55... g3
{[%clk 0:00:08.8]} 56. a5 {[%clk 0:00:20.1]} 56... g2 {[%clk 0:00:09.2]} 57. Ka6
{[%clk 0:00:21]} 57... g1=Q {[%clk 0:00:09.2]} 58. b5 {[%clk 0:00:21.9]} 58...
Qf1 {[%clk 0:00:08.1]} 59. Kb6 {[%clk 0:00:21.4]} 59... Qf6+ {[%clk 0:00:06.4]}
60. Ka7 {[%clk 0:00:21.3]} 60... Qe7+ {[%clk 0:00:04.7]} 61. Ka6 {[%clk
0:00:21.7]} 61... Qe2 {[%clk 0:00:03.4]} 62. Kb6 {[%clk 0:00:21.4]} 62... Qe6+
{[%clk 0:00:03.4]} 63. Ka7 {[%clk 0:00:21.6]} 63... Qd7+ {[%clk 0:00:03.4]} 64.
Ka6 {[%clk 0:00:21.8]} 64... Qd3 {[%clk 0:00:03.5]} 65. Kb6 {[%clk 0:00:21.6]}
65... Qd6+ {[%clk 0:00:03.5]} 66. Ka7 {[%clk 0:00:21.9]} 66... Qc7+ {[%clk
0:00:03.7]} 67. Ka6 {[%clk 0:00:22.2]} 67... Qc4 {[%clk 0:00:03]} 68. Kb6 {[%clk
0:00:22]} 68... Qd4+ {[%clk 0:00:03.1]} 69. Ka6 {[%clk 0:00:21.8]} 69... Qc4
{[%clk 0:00:03.6]} 70. Kb6 {[%clk 0:00:21.8]} 70... Qe6+ {[%clk 0:00:03.9]} 71.
Ka7 {[%clk 0:00:20.6]} 71... Qd7+ {[%clk 0:00:03.8]} 72. Ka6 {[%clk 0:00:20.8]}
72... Kg5 {[%clk 0:00:03.7]} 73. b6 {[%clk 0:00:20.5]} 73... Qc6 {[%clk
0:00:02.3]} 74. Ka7 {[%clk 0:00:20.4]} 74... Qc5 {[%clk 0:00:02.4]} 75. a6
{[%clk 0:00:20.3]} 75... Kf6 {[%clk 0:00:03]} 76. Kb7 {[%clk 0:00:20]} 76...
Qe7+ {[%clk 0:00:02.4]} 77. Ka8 {[%clk 0:00:20.2]} 77... Qe4+ {[%clk 0:00:01.9]}
78. Ka7 {[%clk 0:00:20.2]} 78... Qd4 {[%clk 0:00:01.5]} 79. Kb7 {[%clk
0:00:20.7]} 79... Qd7+ {[%clk 0:00:01.9]} 80. Kb8 {[%clk 0:00:20.5]} 80... Ke7
{[%clk 0:00:02.4]} 81. a7 {[%clk 0:00:19.5]} 81... Qd6+ {[%clk 0:00:02.8]} 82.
Kb7 {[%clk 0:00:19.3]} 82... Qd7+ {[%clk 0:00:02.6]} 83. Kb8 {[%clk 0:00:18.8]}
83... Qd6+ {[%clk 0:00:02.6]} 84. Kb7 {[%clk 0:00:19.2]} 84... Qd7+ {[%clk
0:00:03.1]} 85. Kb8 {[%clk 0:00:17.3]} 1/2-1/2

[Event "*** SCC Grand Prix: Titled Tuesday Blitz"]
[Site "Chess.com"]
[Date "2020.06.02"]
[Round "1"]
[White "BIG_Pirate"]
[Black "AnthonyWirig"]
[Result "1/2-1/2"]
[WhiteElo "2360"]
[BlackElo "2697"]
[TimeControl "180+1"]
[EndTime "10:09:24 PDT"]
[Termination "Game drawn by repetition"]

1. Nf3 {[%clk 0:03:00.1]} 1... d5 {[%clk 0:02:54.5]} 2. c4 {[%clk 0:02:59]} 2...
c6 {[%clk 0:02:53.7]} 3. g3 {[%clk 0:02:59]} 3... Nf6 {[%clk 0:02:52]} 4. Bg2
{[%clk 0:02:59.1]} 4... Bg4 {[%clk 0:02:48.3]} 5. Ne5 {[%clk 0:02:59.1]} 5...
Be6 {[%clk 0:02:48.1]} 6. cxd5 {[%clk 0:02:59.3]} 6... Bxd5 {[%clk 0:02:48.6]}
7. Nf3 {[%clk 0:02:59.9]} 7... c5 {[%clk 0:02:45.9]} 8. Nc3 {[%clk 0:02:59.5]}
8... Bc6 {[%clk 0:02:46]} 9. O-O {[%clk 0:03:00.1]} 9... e6 {[%clk 0:02:39.3]}
10. d4 {[%clk 0:02:51.4]} 10... cxd4 {[%clk 0:02:33.4]} 11. Nxd4 {[%clk
0:02:52.3]} 11... Bxg2 {[%clk 0:02:30.9]} 12. Kxg2 {[%clk 0:02:53.2]} 12... Nbd7
{[%clk 0:01:30.6]} 13. Ndb5 {[%clk 0:02:42.7]} 13... a6 {[%clk 0:01:26.6]} 14.
Nd6+ {[%clk 0:02:39.7]} 14... Bxd6 {[%clk 0:01:26.4]} 15. Qxd6 {[%clk
0:02:40.6]} 15... Qe7 {[%clk 0:01:23.5]} 16. Qc7 {[%clk 0:02:11.7]} 16... Nc5
{[%clk 0:01:07.5]} 17. Qxe7+ {[%clk 0:01:54.6]} 17... Kxe7 {[%clk 0:01:08.4]}
18. b3 {[%clk 0:01:54.3]} 18... Rhc8 {[%clk 0:00:39.6]} 19. Ba3 {[%clk 0:01:54]}
19... Ke8 {[%clk 0:00:36]} 20. Rac1 {[%clk 0:01:54]} 20... b5 {[%clk 0:00:30.6]}
21. Rfd1 {[%clk 0:01:36.5]} 21... Nce4 {[%clk 0:00:28.3]} 22. Nxe4 {[%clk
0:01:26.6]} 22... Nxe4 {[%clk 0:00:29.2]} 23. f3 {[%clk 0:01:24.2]} 23... Nc3
{[%clk 0:00:27.4]} 24. Rd2 {[%clk 0:01:19.2]} 24... a5 {[%clk 0:00:23.1]} 25.
Rdc2 {[%clk 0:01:13.9]} 25... b4 {[%clk 0:00:21.8]} 26. Bb2 {[%clk 0:01:12.7]}
26... Rc6 {[%clk 0:00:20.4]} 27. Bxc3 {[%clk 0:01:01.9]} 27... Rac8 {[%clk
0:00:19.5]} 28. Kf2 {[%clk 0:01:01.8]} 28... bxc3 {[%clk 0:00:18.3]} 29. Rd1
{[%clk 0:01:00.5]} 29... Ke7 {[%clk 0:00:17.9]} 30. Rd4 {[%clk 0:01:00.2]} 30...
Rc5 {[%clk 0:00:17.2]} 31. Ke3 {[%clk 0:00:58.9]} 31... e5 {[%clk 0:00:16.3]}
32. Ra4 {[%clk 0:00:38.9]} 32... Ke6 {[%clk 0:00:16.3]} 33. b4 {[%clk
0:00:38.9]} 33... axb4 {[%clk 0:00:16.3]} 34. Rxb4 {[%clk 0:00:39.8]} 34... R8c6
{[%clk 0:00:15.5]} 35. Rb3 {[%clk 0:00:33.1]} 35... h5 {[%clk 0:00:15.1]} 36. h4
{[%clk 0:00:32.5]} 36... f6 {[%clk 0:00:14.7]} 37. Kd3 {[%clk 0:00:32.6]} 37...
Rd5+ {[%clk 0:00:15]} 38. Ke3 {[%clk 0:00:32.8]} 38... Rdc5 {[%clk 0:00:15.5]}
39. Kd3 {[%clk 0:00:33.2]} 39... Rd6+ {[%clk 0:00:15.6]} 40. Ke3 {[%clk
0:00:33.5]} 40... Ra6 {[%clk 0:00:15.4]} 41. a3 {[%clk 0:00:27.9]} 41... Rac6
{[%clk 0:00:13.7]} 42. Kd3 {[%clk 0:00:28.1]} 42... Rd6+ {[%clk 0:00:14.3]} 43.
Ke3 {[%clk 0:00:28.4]} 43... Rdc6 {[%clk 0:00:14.9]} 44. Kd3 {[%clk 0:00:28.6]}
44... Rd5+ {[%clk 0:00:13.3]} 45. Ke3 {[%clk 0:00:28.8]} 45... Ra6 {[%clk
0:00:10.7]} 46. Rbxc3 {[%clk 0:00:26.4]} 46... Kf5 {[%clk 0:00:08.7]} 47. Kf2
{[%clk 0:00:22.2]} 47... Rda5 {[%clk 0:00:08.4]} 48. Rc7 {[%clk 0:00:14.4]}
48... g6 {[%clk 0:00:06.8]} 49. R2c6 {[%clk 0:00:11.4]} 49... Rxc6 {[%clk
0:00:03.5]} 50. Rxc6 {[%clk 0:00:12.3]} 50... g5 {[%clk 0:00:03.6]} 51. hxg5
{[%clk 0:00:11]} 51... Kxg5 {[%clk 0:00:04.5]} 52. Rc3 {[%clk 0:00:11.1]} 52...
Ra4 {[%clk 0:00:05.1]} 53. Kg2 {[%clk 0:00:10.9]} 53... f5 {[%clk 0:00:05.7]}
54. Kh3 {[%clk 0:00:09.5]} 54... Ra5 {[%clk 0:00:06.1]} 55. Kg2 {[%clk
0:00:06.4]} 55... f4 {[%clk 0:00:06.6]} 56. Kf2 {[%clk 0:00:05]} 56... Kf5
{[%clk 0:00:05.5]} 57. e4+ {[%clk 0:00:04.5]} 57... fxe3+ {[%clk 0:00:05.6]} 58.
Kxe3 {[%clk 0:00:04.7]} 58... Ra4 {[%clk 0:00:06.5]} 59. Kf2 {[%clk 0:00:04.8]}
59... h4 {[%clk 0:00:06.5]} 60. gxh4 {[%clk 0:00:04.1]} 60... Rxh4 {[%clk
0:00:07.4]} 61. Ke3 {[%clk 0:00:04.5]} 61... Rh2 {[%clk 0:00:07.7]} 62. Rc8
{[%clk 0:00:03.3]} 62... Ra2 {[%clk 0:00:08.2]} 63. Rf8+ {[%clk 0:00:03.2]}
63... Ke6 {[%clk 0:00:08.6]} 64. Ra8 {[%clk 0:00:04.1]} 64... Kf5 {[%clk
0:00:08.6]} 65. Rf8+ {[%clk 0:00:03.6]} 65... Ke6 {[%clk 0:00:08.7]} 66. Ra8
{[%clk 0:00:04.5]} 66... Rb2 {[%clk 0:00:09.1]} 67. Ra6+ {[%clk 0:00:04.1]}
67... Kf5 {[%clk 0:00:09.5]} 68. Ra8 {[%clk 0:00:04.8]} 68... Rb3+ {[%clk
0:00:10]} 69. Ke2 {[%clk 0:00:05.3]} 69... Ke6 {[%clk 0:00:10.4]} 70. Kf2 {[%clk
0:00:04.6]} 70... Kf6 {[%clk 0:00:10.3]} 71. Ra7 {[%clk 0:00:03.3]} 71... Kf5
{[%clk 0:00:10.4]} 72. a4 {[%clk 0:00:03.1]} 72... Kf4 {[%clk 0:00:10.7]} 73.
Rf7+ {[%clk 0:00:03]} 73... Kg5 {[%clk 0:00:11.1]} 74. Ra7 {[%clk 0:00:03.9]}
74... Ra3 {[%clk 0:00:11.6]} 75. Ra8 {[%clk 0:00:03.8]} 75... Kf4 {[%clk
0:00:11.4]} 76. Rf8+ {[%clk 0:00:03.2]} 76... Kg5 {[%clk 0:00:11.8]} 77. Ra8
{[%clk 0:00:04.1]} 77... Ra2+ {[%clk 0:00:10.9]} 78. Kg3 {[%clk 0:00:03.9]}
78... Ra3 {[%clk 0:00:10.3]} 79. Rg8+ {[%clk 0:00:04.4]} 79... Kf6 {[%clk
0:00:10.5]} 80. Rf8+ {[%clk 0:00:04.3]} 80... Ke7 {[%clk 0:00:10.5]} 81. Ra8
{[%clk 0:00:03.7]} 81... e4 {[%clk 0:00:10.9]} 82. Kf2 {[%clk 0:00:03.8]} 82...
Rxf3+ {[%clk 0:00:09.2]} 83. Ke2 {[%clk 0:00:03.8]} 83... Ra3 {[%clk 0:00:10.1]}
84. Ra6 {[%clk 0:00:02.3]} 84... Kd7 {[%clk 0:00:10.1]} 85. Kd2 {[%clk
0:00:02.5]} 85... Ke7 {[%clk 0:00:10.4]} 86. Ke2 {[%clk 0:00:02.7]} 86... Kd7
{[%clk 0:00:10.8]} 87. Kd2 {[%clk 0:00:03.1]} 87... Rd3+ {[%clk 0:00:10.7]} 88.
Ke2 {[%clk 0:00:03.3]} 88... Ra3 {[%clk 0:00:11.6]} 1/2-1/2